[Event "Early-Titled-Tuesday-Blitz-November-28-2023"]
[Site "Chess.com"]
[Date "2023.11.28"]
[Round "4"]
[White "tantaan"]
[Black "IljaZaragatski"]
[Result "0-1"]
[WhiteElo "2354"]
[BlackElo "2640"]
[TimeControl "180+1"]
[EndTime "8:39:39 PST"]
[Termination "IljaZaragatski won by resignation"]

1. e4 {[%clk 0:03:00.9]} 1... d6 {[%clk 0:02:55.7]} 2. d4 {[%clk 0:03:00]} 2...
Nf6 {[%clk 0:02:55.7]} 3. Nc3 {[%clk 0:03:00.4]} 3... e5 {[%clk 0:02:55.1]} 4.
Nf3 {[%clk 0:02:51.9]} 4... Nbd7 {[%clk 0:02:54.1]} 5. Be3 {[%clk 0:02:52]} 5...
Be7 {[%clk 0:02:51.8]} 6. Bc4 {[%clk 0:02:50.6]} 6... O-O {[%clk 0:02:49.4]} 7.
O-O {[%clk 0:02:48.7]} 7... Nb6 {[%clk 0:02:41.5]} 8. Be2 {[%clk 0:02:41.6]}
8... exd4 {[%clk 0:02:38.8]} 9. Nxd4 {[%clk 0:02:39.9]} 9... Re8 {[%clk
0:02:34.3]} 10. Nf5 {[%clk 0:02:33.8]} 10... Bf8 {[%clk 0:02:33.2]} 11. Ng3
{[%clk 0:02:33.3]} 11... c6 {[%clk 0:02:24.1]} 12. Qd2 {[%clk 0:02:27.1]} 12...
Be6 {[%clk 0:02:22.2]} 13. b3 {[%clk 0:02:23.2]} 13... Qc7 {[%clk 0:02:13.9]}
14. a4 {[%clk 0:02:18.8]} 14... a5 {[%clk 0:02:08.5]} 15. Rad1 {[%clk
0:02:11.8]} 15... Rad8 {[%clk 0:01:57]} 16. Bd3 {[%clk 0:02:11]} 16... d5 {[%clk
0:01:51.6]} 17. e5 {[%clk 0:01:51.9]} 17... Ng4 {[%clk 0:01:25.8]} 18. Bg5
{[%clk 0:01:39.1]} 18... Bb4 {[%clk 0:01:02.6]} 19. Bxd8 {[%clk 0:01:29]} 19...
Rxd8 {[%clk 0:01:03.5]} 20. Nge2 {[%clk 0:01:14.6]} 20... Qxe5 {[%clk 0:01:03]}
21. f4 {[%clk 0:01:10.2]} 21... Qh5 {[%clk 0:00:55.1]} 22. h3 {[%clk 0:01:05.6]}
22... Bc5+ {[%clk 0:00:54.6]} 23. Kh1 {[%clk 0:01:04.3]} 23... Nf2+ {[%clk
0:00:46.6]} 24. Rxf2 {[%clk 0:00:58.5]} 24... Bxf2 {[%clk 0:00:47.5]} 25. Ng1
{[%clk 0:00:46.5]} 25... Bc5 {[%clk 0:00:43.1]} 26. Nce2 {[%clk 0:00:42.9]}
26... Qh6 {[%clk 0:00:38]} 27. f5 {[%clk 0:00:42.1]} 27... Qxd2 {[%clk
0:00:32.9]} 28. Rxd2 {[%clk 0:00:43]} 28... Bc8 {[%clk 0:00:32.7]} 29. Rd1
{[%clk 0:00:43.7]} 29... Re8 {[%clk 0:00:31.4]} 30. Nf3 {[%clk 0:00:42]} 30...
Nd7 {[%clk 0:00:31.4]} 31. Nf4 {[%clk 0:00:39.3]} 31... Bd6 {[%clk 0:00:30.7]}
32. Nh5 {[%clk 0:00:38.8]} 32... Nf6 {[%clk 0:00:27.9]} 33. Nxf6+ {[%clk
0:00:37.6]} 33... gxf6 {[%clk 0:00:28.8]} 34. Nh2 {[%clk 0:00:33.5]} 34... h5
{[%clk 0:00:25.2]} 35. g4 {[%clk 0:00:23.7]} 35... hxg4 {[%clk 0:00:15.8]} 36.
Nxg4 {[%clk 0:00:22]} 36... Kg7 {[%clk 0:00:14]} 37. Rg1 {[%clk 0:00:22.6]}
37... Rh8 {[%clk 0:00:14.1]} 38. Kg2 {[%clk 0:00:17.5]} 38... Rh5 {[%clk
0:00:11.4]} 39. Rf1 {[%clk 0:00:17]} 39... c5 {[%clk 0:00:08.2]} 40. c3 {[%clk
0:00:15.5]} 40... Bd7 {[%clk 0:00:08.1]} 41. c4 {[%clk 0:00:15.5]} 41... Bc6
{[%clk 0:00:08]} 42. cxd5 {[%clk 0:00:14.2]} 42... Bxd5+ {[%clk 0:00:08.9]} 43.
Kf2 {[%clk 0:00:13]} 43... Rxh3 {[%clk 0:00:09.1]} 44. Rg1 {[%clk 0:00:13.7]}
44... Kf8 {[%clk 0:00:06.9]} 45. Ne3 {[%clk 0:00:14.1]} 45... Bc6 {[%clk
0:00:05.5]} 46. Bf1 {[%clk 0:00:14.3]} 46... Rf3+ {[%clk 0:00:05.2]} 47. Ke2
{[%clk 0:00:14.4]} 47... Rf4 {[%clk 0:00:06.1]} 48. Rh1 {[%clk 0:00:13.9]} 48...
Bxh1 {[%clk 0:00:05.6]} 0-1

[Event "Early-Titled-Tuesday-Blitz-November-28-2023"]
[Site "Chess.com"]
[Date "2023.11.28"]
[Round "4"]
[White "simonachess"]
[Black "Road2GM3000"]
[Result "1-0"]
[WhiteElo "2278"]
[BlackElo "2485"]
[TimeControl "180+1"]
[EndTime "8:39:39 PST"]
[Termination "simonachess won by resignation"]

1. d4 {[%clk 0:02:55]} 1... d5 {[%clk 0:02:59.3]} 2. c4 {[%clk 0:02:54.5]} 2...
c6 {[%clk 0:02:59.9]} 3. Nc3 {[%clk 0:02:54.5]} 3... Nf6 {[%clk 0:03:00.4]} 4.
e3 {[%clk 0:02:52.9]} 4... a6 {[%clk 0:03:00.7]} 5. Nf3 {[%clk 0:02:52.6]} 5...
Bf5 {[%clk 0:03:00.2]} 6. Be2 {[%clk 0:02:42]} 6... e6 {[%clk 0:02:59.6]} 7. O-O
{[%clk 0:02:41.2]} 7... Nbd7 {[%clk 0:03:00.1]} 8. b3 {[%clk 0:02:40.9]} 8...
Bd6 {[%clk 0:03:00.5]} 9. Bb2 {[%clk 0:02:40.9]} 9... O-O {[%clk 0:03:01.1]} 10.
cxd5 {[%clk 0:02:36.7]} 10... exd5 {[%clk 0:03:00.7]} 11. Re1 {[%clk 0:02:30.2]}
11... Ne4 {[%clk 0:03:00.8]} 12. Bf1 {[%clk 0:02:17.1]} 12... Qf6 {[%clk
0:02:58.8]} 13. a3 {[%clk 0:02:09.4]} 13... Qh6 {[%clk 0:02:58.7]} 14. Ne2
{[%clk 0:02:00.7]} 14... Ndf6 {[%clk 0:02:55.6]} 15. Ng3 {[%clk 0:01:02]} 15...
Ng4 {[%clk 0:02:54.4]} 16. Re2 {[%clk 0:00:33.2]} 16... Ng5 {[%clk 0:02:48.7]}
17. h3 {[%clk 0:00:15.5]} 17... Bxg3 {[%clk 0:02:43.5]} 18. fxg3 {[%clk
0:00:12.7]} 18... Nxf3+ {[%clk 0:02:37.6]} 19. gxf3 {[%clk 0:00:11.8]} 19...
Nxe3 {[%clk 0:02:33]} 20. Bc1 {[%clk 0:00:09.7]} 20... Nxd1 {[%clk 0:02:31]} 21.
Bxh6 {[%clk 0:00:09.5]} 21... Nc3 {[%clk 0:02:29.2]} 22. Re3 {[%clk 0:00:09]}
22... gxh6 {[%clk 0:02:23.4]} 23. Rxc3 {[%clk 0:00:08.6]} 23... Rfe8 {[%clk
0:02:24]} 24. Kf2 {[%clk 0:00:08.3]} 24... Re7 {[%clk 0:02:23.3]} 25. g4 {[%clk
0:00:08.8]} 25... Bg6 {[%clk 0:02:22.7]} 26. Re1 {[%clk 0:00:08.4]} 26... Rae8
{[%clk 0:02:21.7]} 27. Rce3 {[%clk 0:00:08.6]} 27... Rxe3 {[%clk 0:02:21.2]} 28.
Rxe3 {[%clk 0:00:09.5]} 28... Rxe3 {[%clk 0:02:20.8]} 29. Kxe3 {[%clk
0:00:10.4]} 29... Kf8 {[%clk 0:02:20.5]} 30. Kf4 {[%clk 0:00:10.8]} 30... Ke7
{[%clk 0:02:21]} 31. Ke3 {[%clk 0:00:10.6]} 31... Kd6 {[%clk 0:02:21.3]} 32. h4
{[%clk 0:00:11]} 32... b6 {[%clk 0:02:19.8]} 33. b4 {[%clk 0:00:10.5]} 33... c5
{[%clk 0:02:19.4]} 34. bxc5+ {[%clk 0:00:10.5]} 34... bxc5 {[%clk 0:02:19.9]}
35. dxc5+ {[%clk 0:00:11.2]} 35... Kxc5 {[%clk 0:02:20.1]} 36. Bxa6 {[%clk
0:00:11.8]} 36... d4+ {[%clk 0:02:09.9]} 37. Kd2 {[%clk 0:00:11.9]} 37... Kd5
{[%clk 0:02:04.3]} 38. Bd3 {[%clk 0:00:11.8]} 38... f5 {[%clk 0:01:58.8]} 39.
gxf5 {[%clk 0:00:10.9]} 39... Be8 {[%clk 0:01:56.9]} 40. Be4+ {[%clk 0:00:09.8]}
40... Ke5 {[%clk 0:01:57.3]} 41. Bd3 {[%clk 0:00:08.1]} 41... Kf4 {[%clk
0:01:56.5]} 42. Ke2 {[%clk 0:00:08.3]} 42... Kg3 {[%clk 0:01:52.4]} 43. Be4
{[%clk 0:00:07.7]} 43... Bb5+ {[%clk 0:01:51.4]} 44. Kd2 {[%clk 0:00:07.7]}
44... Kxh4 {[%clk 0:01:50.7]} 45. f6 {[%clk 0:00:08.3]} 45... Bc4 {[%clk
0:01:48.6]} 46. a4 {[%clk 0:00:07.7]} 46... Kg5 {[%clk 0:01:47.5]} 47. Bxh7
{[%clk 0:00:07.6]} 47... Kxf6 {[%clk 0:01:46.1]} 48. Bd3 {[%clk 0:00:08.3]}
48... Bd5 {[%clk 0:01:28.4]} 49. Be4 {[%clk 0:00:07.9]} 49... Bxe4 {[%clk
0:00:13.2]} 50. fxe4 {[%clk 0:00:08.8]} 50... h5 {[%clk 0:00:13.7]} 51. a5
{[%clk 0:00:09]} 51... h4 {[%clk 0:00:14.2]} 52. a6 {[%clk 0:00:09.5]} 52... h3
{[%clk 0:00:15]} 53. a7 {[%clk 0:00:10.1]} 53... h2 {[%clk 0:00:15.6]} 54. a8=Q
{[%clk 0:00:10.6]} 54... h1=Q {[%clk 0:00:15.5]} 55. e5+ {[%clk 0:00:11.1]} 1-0

[Event "Early-Titled-Tuesday-Blitz-November-28-2023"]
[Site "Chess.com"]
[Date "2023.11.28"]
[Round "4"]
[White "KuzubovYuriy"]
[Black "Predator0608"]
[Result "0-1"]
[WhiteElo "2838"]
[BlackElo "2602"]
[TimeControl "180+1"]
[EndTime "8:39:40 PST"]
[Termination "Predator0608 won by checkmate"]

1. d4 {[%clk 0:02:56.7]} 1... d5 {[%clk 0:02:59.7]} 2. c4 {[%clk 0:02:56.2]}
2... e6 {[%clk 0:03:00]} 3. Nf3 {[%clk 0:02:56.7]} 3... Nf6 {[%clk 0:03:00.6]}
4. Nc3 {[%clk 0:02:57.3]} 4... Be7 {[%clk 0:03:00.7]} 5. cxd5 {[%clk 0:02:56.9]}
5... exd5 {[%clk 0:03:00.6]} 6. Bf4 {[%clk 0:02:57.6]} 6... c6 {[%clk
0:03:00.6]} 7. e3 {[%clk 0:02:58.2]} 7... Nbd7 {[%clk 0:02:59.5]} 8. Bd3 {[%clk
0:02:57]} 8... h6 {[%clk 0:02:58.5]} 9. h3 {[%clk 0:02:55.1]} 9... O-O {[%clk
0:02:56.3]} 10. g4 {[%clk 0:02:51.7]} 10... Re8 {[%clk 0:02:45.6]} 11. Qc2
{[%clk 0:02:50.1]} 11... a5 {[%clk 0:02:20.4]} 12. O-O-O {[%clk 0:02:34.8]}
12... a4 {[%clk 0:02:18.3]} 13. Kb1 {[%clk 0:02:35.2]} 13... a3 {[%clk
0:02:17.9]} 14. b3 {[%clk 0:02:35.2]} 14... Bb4 {[%clk 0:01:58.8]} 15. g5 {[%clk
0:02:17]} 15... hxg5 {[%clk 0:01:47.4]} 16. Nxg5 {[%clk 0:02:13.5]} 16... Nf8
{[%clk 0:01:10.6]} 17. Rhg1 {[%clk 0:02:09.6]} 17... Bxc3 {[%clk 0:00:48.9]} 18.
Qxc3 {[%clk 0:02:10.5]} 18... Ne4 {[%clk 0:00:49.4]} 19. Qc2 {[%clk 0:01:59]}
19... Qa5 {[%clk 0:00:37.1]} 20. Nxe4 {[%clk 0:01:29.7]} 20... dxe4 {[%clk
0:00:38]} 21. Be2 {[%clk 0:01:24]} 21... Bf5 {[%clk 0:00:25.2]} 22. h4 {[%clk
0:01:20.4]} 22... Ne6 {[%clk 0:00:21.7]} 23. Be5 {[%clk 0:01:19.7]} 23... Kf8
{[%clk 0:00:11.1]} 24. Bc4 {[%clk 0:01:07.4]} 24... f6 {[%clk 0:00:10.4]} 25.
Bd6+ {[%clk 0:01:04.7]} 25... Kf7 {[%clk 0:00:10.7]} 26. f3 {[%clk 0:00:54.4]}
26... exf3 {[%clk 0:00:09.9]} 27. e4 {[%clk 0:00:54.2]} 27... Bh7 {[%clk
0:00:09.5]} 28. Ka1 {[%clk 0:00:26.5]} 28... b5 {[%clk 0:00:09]} 29. Bxe6+
{[%clk 0:00:19.7]} 29... Rxe6 {[%clk 0:00:09.9]} 30. Qxc6 {[%clk 0:00:20.2]}
30... Rxd6 {[%clk 0:00:06.3]} 31. Qb7+ {[%clk 0:00:19.6]} 31... Ke8 {[%clk
0:00:03.9]} 32. Rc1 {[%clk 0:00:18.7]} 32... Rad8 {[%clk 0:00:02.6]} 33. Rxg7
{[%clk 0:00:12.6]} 33... R6d7 {[%clk 0:00:03.2]} 34. Qc6 {[%clk 0:00:12.2]}
34... Qd2 {[%clk 0:00:02.6]} 35. Rxd7 {[%clk 0:00:07]} 35... Rxd7 {[%clk
0:00:02.2]} 36. Qe6+ {[%clk 0:00:07.1]} 36... Kd8 {[%clk 0:00:02.1]} 37. Qxf6+
{[%clk 0:00:07.3]} 37... Re7 {[%clk 0:00:02.7]} 38. Qb6+ {[%clk 0:00:06.6]}
38... Ke8 {[%clk 0:00:03.1]} 39. Qc6+ {[%clk 0:00:05.7]} 39... Kf7 {[%clk
0:00:03.8]} 40. Qd5+ {[%clk 0:00:06.2]} 40... Kg7 {[%clk 0:00:03.7]} 41. Rg1+
{[%clk 0:00:06]} 41... Bg6 {[%clk 0:00:04.2]} 42. Qc5 {[%clk 0:00:05.7]} 42...
Qb2# {[%clk 0:00:04]} 0-1

[Event "Early-Titled-Tuesday-Blitz-November-28-2023"]
[Site "Chess.com"]
[Date "2023.11.28"]
[Round "4"]
[White "CSB7"]
[Black "LeoLV10"]
[Result "0-1"]
[WhiteElo "2718"]
[BlackElo "2544"]
[TimeControl "180+1"]
[EndTime "8:39:43 PST"]
[Termination "LeoLV10 won by checkmate"]

1. d4 {[%clk 0:03:00.9]} 1... Nf6 {[%clk 0:02:59.2]} 2. c4 {[%clk 0:03:00.8]}
2... e6 {[%clk 0:02:58.1]} 3. Nc3 {[%clk 0:03:00.3]} 3... Bb4 {[%clk 0:02:57.8]}
4. g3 {[%clk 0:02:57.3]} 4... d5 {[%clk 0:02:54.4]} 5. a3 {[%clk 0:02:49.5]}
5... Be7 {[%clk 0:02:49.8]} 6. Bg2 {[%clk 0:02:48.5]} 6... c6 {[%clk 0:02:50.2]}
7. Nf3 {[%clk 0:02:48]} 7... O-O {[%clk 0:02:50.1]} 8. O-O {[%clk 0:02:46.9]}
8... Nbd7 {[%clk 0:02:50.2]} 9. Nd2 {[%clk 0:02:43.5]} 9... Nb6 {[%clk
0:02:45.5]} 10. b3 {[%clk 0:02:27.1]} 10... dxc4 {[%clk 0:02:36.3]} 11. Nxc4
{[%clk 0:02:26.6]} 11... Nfd5 {[%clk 0:02:32.5]} 12. Bb2 {[%clk 0:02:16.7]}
12... Nxc3 {[%clk 0:02:13.6]} 13. Bxc3 {[%clk 0:02:15.9]} 13... Nd5 {[%clk
0:02:14]} 14. Bb2 {[%clk 0:02:10.7]} 14... b5 {[%clk 0:02:09.9]} 15. Ne5 {[%clk
0:02:08.6]} 15... Bb7 {[%clk 0:02:09.9]} 16. Rc1 {[%clk 0:02:02.9]} 16... Rc8
{[%clk 0:02:08.5]} 17. Nd3 {[%clk 0:01:51.7]} 17... a5 {[%clk 0:01:46.4]} 18. e4
{[%clk 0:01:33]} 18... Nb6 {[%clk 0:01:41.8]} 19. Nc5 {[%clk 0:01:33.5]} 19...
Ba8 {[%clk 0:01:40.8]} 20. Qg4 {[%clk 0:01:13.6]} 20... Bf6 {[%clk 0:01:27]} 21.
Rfd1 {[%clk 0:01:07.1]} 21... Nd7 {[%clk 0:01:25.7]} 22. Nd3 {[%clk 0:00:42.2]}
22... Qb6 {[%clk 0:01:11.4]} 23. e5 {[%clk 0:00:34.1]} 23... Be7 {[%clk
0:01:10.6]} 24. b4 {[%clk 0:00:34.6]} 24... Qd8 {[%clk 0:00:50.7]} 25. Nc5
{[%clk 0:00:27.9]} 25... Nb6 {[%clk 0:00:47]} 26. Rc3 {[%clk 0:00:20.4]} 26...
Nc4 {[%clk 0:00:31.5]} 27. Bc1 {[%clk 0:00:20.1]} 27... Re8 {[%clk 0:00:24.8]}
28. Bf1 {[%clk 0:00:17.7]} 28... Nb6 {[%clk 0:00:24]} 29. Bd3 {[%clk 0:00:15.3]}
29... Bf8 {[%clk 0:00:22]} 30. h4 {[%clk 0:00:14.6]} 30... Nd5 {[%clk
0:00:20.7]} 31. Rb3 {[%clk 0:00:14.8]} 31... f5 {[%clk 0:00:17.4]} 32. exf6
{[%clk 0:00:12.8]} 32... Nxf6 {[%clk 0:00:17.6]} 33. Qe2 {[%clk 0:00:11.9]}
33... Qd5 {[%clk 0:00:16.9]} 34. Rc3 {[%clk 0:00:06.4]} 34... axb4 {[%clk
0:00:16.6]} 35. axb4 {[%clk 0:00:06.4]} 35... e5 {[%clk 0:00:17.1]} 36. dxe5
{[%clk 0:00:07.3]} 36... Rxe5 {[%clk 0:00:17.3]} 37. Bxh7+ {[%clk 0:00:03.5]}
37... Kxh7 {[%clk 0:00:15.9]} 38. Qc2+ {[%clk 0:00:04]} 38... Kg8 {[%clk
0:00:14.4]} 39. Rxd5 {[%clk 0:00:04.2]} 39... Nxd5 {[%clk 0:00:15.3]} 40. Rb3
{[%clk 0:00:02.9]} 40... Re1+ {[%clk 0:00:14.3]} 41. Kg2 {[%clk 0:00:02.7]}
41... Rce8 {[%clk 0:00:14.2]} 42. Bg5 {[%clk 0:00:02.7]} 42... R8e2 {[%clk
0:00:13.7]} 43. Qf5 {[%clk 0:00:03.4]} 43... Nxb4 {[%clk 0:00:12.7]} 44. Rxb4
{[%clk 0:00:02.3]} 44... Bxc5 {[%clk 0:00:13.3]} 45. Qxc5 {[%clk 0:00:02.7]}
45... Kh7 {[%clk 0:00:11.3]} 46. Qa7 {[%clk 0:00:02.2]} 46... Re8 {[%clk
0:00:09.6]} 47. Rg4 {[%clk 0:00:02.4]} 47... c5+ {[%clk 0:00:10]} 48. f3 {[%clk
0:00:02.3]} 48... R8e2+ {[%clk 0:00:10.6]} 49. Kh3 {[%clk 0:00:02.6]} 49... Rh1#
{[%clk 0:00:10.9]} 0-1

[Event "Early-Titled-Tuesday-Blitz-November-28-2023"]
[Site "Chess.com"]
[Date "2023.11.28"]
[Round "4"]
[White "Kolle05"]
[Black "VitaliyChayka"]
[Result "1-0"]
[WhiteElo "2659"]
[BlackElo "2426"]
[TimeControl "180+1"]
[EndTime "8:39:48 PST"]
[Termination "Kolle05 won on time"]

1. e4 {[%clk 0:03:00.2]} 1... d6 {[%clk 0:02:59.6]} 2. d4 {[%clk 0:03:00.1]}
2... Nf6 {[%clk 0:02:59.8]} 3. Nc3 {[%clk 0:03:00.4]} 3... e5 {[%clk 0:03:00.1]}
4. Nf3 {[%clk 0:03:00.2]} 4... Nbd7 {[%clk 0:03:00.1]} 5. Bc4 {[%clk 0:03:00.1]}
5... Be7 {[%clk 0:03:00.4]} 6. h3 {[%clk 0:02:59.9]} 6... O-O {[%clk 0:03:00.2]}
7. g4 {[%clk 0:02:59.7]} 7... c6 {[%clk 0:02:55.6]} 8. a4 {[%clk 0:02:58.9]}
8... a5 {[%clk 0:02:45.7]} 9. Be3 {[%clk 0:02:55.7]} 9... exd4 {[%clk
0:02:45.5]} 10. Nxd4 {[%clk 0:02:53.8]} 10... Nc5 {[%clk 0:02:45.5]} 11. f3
{[%clk 0:02:53.2]} 11... Qb6 {[%clk 0:02:44.8]} 12. Nb3 {[%clk 0:02:50.4]} 12...
Qb4 {[%clk 0:02:44.4]} 13. Qe2 {[%clk 0:02:45.4]} 13... d5 {[%clk 0:02:38.8]}
14. exd5 {[%clk 0:02:33.4]} 14... cxd5 {[%clk 0:02:35.4]} 15. Nxc5 {[%clk
0:01:52.1]} 15... Bxc5 {[%clk 0:02:12.9]} 16. Bxc5 {[%clk 0:01:53]} 16... Qxc5
{[%clk 0:02:11.2]} 17. Bb5 {[%clk 0:01:53]} 17... d4 {[%clk 0:01:59.9]} 18. Ne4
{[%clk 0:01:52.7]} 18... Nxe4 {[%clk 0:01:56.9]} 19. Qxe4 {[%clk 0:01:46.2]}
19... f5 {[%clk 0:01:51.4]} 20. Qd3 {[%clk 0:01:34.2]} 20... Qb4+ {[%clk
0:01:29.6]} 21. Kf2 {[%clk 0:01:33.6]} 21... Qxb2 {[%clk 0:01:27.1]} 22. Rae1
{[%clk 0:01:10.1]} 22... Qb4 {[%clk 0:01:15.1]} 23. g5 {[%clk 0:01:06.6]} 23...
f4 {[%clk 0:01:13]} 24. Re5 {[%clk 0:01:00.1]} 24... Qd6 {[%clk 0:00:59.2]} 25.
Qe4 {[%clk 0:00:56]} 25... Bd7 {[%clk 0:00:43.6]} 26. Rd5 {[%clk 0:00:55.2]}
26... Qb6 {[%clk 0:00:23.9]} 27. Rxd7 {[%clk 0:00:51.3]} 27... d3+ {[%clk
0:00:21.5]} 28. Qd4 {[%clk 0:00:49.3]} 28... Qxd4+ {[%clk 0:00:18.4]} 29. Rxd4
{[%clk 0:00:50.2]} 29... dxc2 {[%clk 0:00:18.2]} 30. Rc1 {[%clk 0:00:50.6]}
30... Rac8 {[%clk 0:00:18.3]} 31. Rc4 {[%clk 0:00:49]} 31... Rxc4 {[%clk
0:00:13.9]} 32. Bxc4+ {[%clk 0:00:49.9]} 32... Kh8 {[%clk 0:00:13.8]} 33. Rxc2
{[%clk 0:00:50.1]} 33... Rc8 {[%clk 0:00:13.2]} 34. Bb3 {[%clk 0:00:49.8]} 34...
Rd8 {[%clk 0:00:13]} 35. h4 {[%clk 0:00:46.3]} 35... g6 {[%clk 0:00:12.9]} 36.
Rc7 {[%clk 0:00:45.6]} 36... Rd2+ {[%clk 0:00:12.1]} 37. Ke1 {[%clk 0:00:45.4]}
37... Rd8 {[%clk 0:00:11.2]} 38. Rxb7 {[%clk 0:00:45]} 38... h5 {[%clk
0:00:09.6]} 39. gxh6 {[%clk 0:00:37]} 39... g5 {[%clk 0:00:09.6]} 40. hxg5
{[%clk 0:00:11.8]} 40... Re8+ {[%clk 0:00:08.6]} 41. Kd1 {[%clk 0:00:11.8]}
41... Re1+ {[%clk 0:00:08.2]} 42. Kc2 {[%clk 0:00:11.9]} 42... Re2+ {[%clk
0:00:06.8]} 43. Kc3 {[%clk 0:00:11.6]} 43... Re3+ {[%clk 0:00:06.1]} 44. Kb2
{[%clk 0:00:12]} 44... Re2+ {[%clk 0:00:05.9]} 45. Bc2 {[%clk 0:00:12.4]} 45...
Re8 {[%clk 0:00:02.6]} 46. g6 {[%clk 0:00:12.6]} 46... Kg8 {[%clk 0:00:01.9]}
47. g7 {[%clk 0:00:11.8]} 1-0

[Event "Early-Titled-Tuesday-Blitz-November-28-2023"]
[Site "Chess.com"]
[Date "2023.11.28"]
[Round "4"]
[White "Thormento16"]
[Black "bubeliang"]
[Result "0-1"]
[WhiteElo "2359"]
[BlackElo "2643"]
[TimeControl "180+1"]
[EndTime "8:39:48 PST"]
[Termination "bubeliang won by resignation"]

1. d4 {[%clk 0:03:00.9]} 1... e5 {[%clk 0:02:56.3]} 2. e4 {[%clk 0:02:59.6]}
2... exd4 {[%clk 0:02:56]} 3. Nf3 {[%clk 0:03:00.2]} 3... Nc6 {[%clk 0:02:55.6]}
4. Nxd4 {[%clk 0:03:00.2]} 4... Bc5 {[%clk 0:02:51]} 5. Be3 {[%clk 0:02:58.4]}
5... Qf6 {[%clk 0:02:49.4]} 6. c3 {[%clk 0:02:58.6]} 6... Nge7 {[%clk
0:02:48.9]} 7. g3 {[%clk 0:02:54.9]} 7... O-O {[%clk 0:02:44]} 8. Bg2 {[%clk
0:02:48.3]} 8... Nxd4 {[%clk 0:02:43.9]} 9. cxd4 {[%clk 0:02:47.4]} 9... Bb4+
{[%clk 0:02:44.2]} 10. Nc3 {[%clk 0:02:45.6]} 10... d5 {[%clk 0:02:43.8]} 11.
O-O {[%clk 0:02:40.8]} 11... Bxc3 {[%clk 0:02:39.2]} 12. bxc3 {[%clk 0:02:41.7]}
12... dxe4 {[%clk 0:02:39.4]} 13. Bxe4 {[%clk 0:02:40.4]} 13... c6 {[%clk
0:02:37.4]} 14. Bg2 {[%clk 0:02:37.6]} 14... Be6 {[%clk 0:02:34.3]} 15. Bf4
{[%clk 0:02:36]} 15... Nd5 {[%clk 0:02:27.9]} 16. Be5 {[%clk 0:02:35.3]} 16...
Qe7 {[%clk 0:02:27.7]} 17. Qd2 {[%clk 0:02:30.8]} 17... b5 {[%clk 0:02:22.6]}
18. a4 {[%clk 0:02:28.8]} 18... a6 {[%clk 0:02:21.7]} 19. axb5 {[%clk
0:02:28.7]} 19... axb5 {[%clk 0:02:22.6]} 20. h4 {[%clk 0:02:26.5]} 20... Qd7
{[%clk 0:02:20.3]} 21. Rfe1 {[%clk 0:02:22.6]} 21... f6 {[%clk 0:02:14.9]} 22.
Bf4 {[%clk 0:02:21.3]} 22... Bf7 {[%clk 0:02:15.4]} 23. Kh2 {[%clk 0:02:16.9]}
23... Nb6 {[%clk 0:02:05.2]} 24. Qe2 {[%clk 0:02:10.1]} 24... Bc4 {[%clk
0:01:56.9]} 25. Qe3 {[%clk 0:02:00.2]} 25... Nd5 {[%clk 0:01:55.7]} 26. Bxd5+
{[%clk 0:01:58.2]} 26... Bxd5 {[%clk 0:01:56.6]} 27. Rxa8 {[%clk 0:01:58.5]}
27... Rxa8 {[%clk 0:01:55.6]} 28. Qe7 {[%clk 0:01:59]} 28... Qxe7 {[%clk
0:01:53.7]} 29. Rxe7 {[%clk 0:01:57.1]} 29... Ra3 {[%clk 0:01:48.6]} 30. Re3
{[%clk 0:01:53.4]} 30... Ra1 {[%clk 0:01:46.7]} 31. f3 {[%clk 0:01:53.3]} 31...
Ra2+ {[%clk 0:01:46.6]} 32. Kg1 {[%clk 0:01:52]} 32... Kf7 {[%clk 0:01:45.8]}
33. g4 {[%clk 0:01:51.8]} 33... h6 {[%clk 0:01:42.9]} 34. h5 {[%clk 0:01:51.4]}
34... Rc2 {[%clk 0:01:34.3]} 35. Kf1 {[%clk 0:01:50.8]} 35... Bc4+ {[%clk
0:01:32.1]} 36. Ke1 {[%clk 0:01:50.8]} 36... Bd5 {[%clk 0:01:29.8]} 37. Bd6
{[%clk 0:01:48.4]} 37... Be6 {[%clk 0:01:28.6]} 38. Bb4 {[%clk 0:01:47.2]} 38...
Rh2 {[%clk 0:01:22.9]} 39. Re2 {[%clk 0:01:44.3]} 39... Rh3 {[%clk 0:01:14.8]}
40. Re3 {[%clk 0:01:43.3]} 40... f5 {[%clk 0:01:10.1]} 41. gxf5 {[%clk
0:01:37.6]} 41... Bd5 {[%clk 0:01:09.7]} 42. Re7+ {[%clk 0:01:37.1]} 42... Kg8
{[%clk 0:01:09.3]} 43. Bd6 {[%clk 0:01:30.7]} 43... Rxh5 {[%clk 0:01:02.4]} 44.
Be5 {[%clk 0:01:30.5]} 44... Bf7 {[%clk 0:01:02.3]} 45. f6 {[%clk 0:01:24.2]}
45... gxf6 {[%clk 0:01:01.4]} 46. Bxf6 {[%clk 0:01:25.1]} 46... Rf5 {[%clk
0:01:01.3]} 47. Be5 {[%clk 0:01:19.5]} 47... Rxf3 {[%clk 0:01:01.2]} 48. Rc7
{[%clk 0:01:19.6]} 48... Rxc3 {[%clk 0:00:51]} 49. Kd2 {[%clk 0:01:19.6]} 49...
Rc4 {[%clk 0:00:50.7]} 50. Ke3 {[%clk 0:01:08.7]} 50... b4 {[%clk 0:00:40.6]}
51. Rc8+ {[%clk 0:01:08.3]} 51... Kh7 {[%clk 0:00:40.2]} 52. Rh8+ {[%clk
0:01:09.2]} 52... Kg6 {[%clk 0:00:40.2]} 53. Bf4 {[%clk 0:01:10.1]} 53... b3
{[%clk 0:00:36.1]} 54. Rxh6+ {[%clk 0:01:08.6]} 54... Kg7 {[%clk 0:00:36.3]} 55.
Rh2 {[%clk 0:01:03.7]} 55... Bg6 {[%clk 0:00:34.2]} 56. Rb2 {[%clk 0:01:03.3]}
56... Bc2 {[%clk 0:00:34.2]} 57. Be5+ {[%clk 0:01:00.4]} 57... Kg6 {[%clk
0:00:34]} 58. Kd2 {[%clk 0:01:00.9]} 58... Kf5 {[%clk 0:00:34]} 59. Bh8 {[%clk
0:00:54.1]} 59... Ke4 {[%clk 0:00:33.7]} 60. Bg7 {[%clk 0:00:52.5]} 60... Rxd4+
{[%clk 0:00:33.8]} 61. Bxd4 {[%clk 0:00:49.7]} 61... Kxd4 {[%clk 0:00:34.7]} 62.
Kc1 {[%clk 0:00:35]} 62... Kc4 {[%clk 0:00:30.9]} 63. Kd2 {[%clk 0:00:33.4]}
63... Kb4 {[%clk 0:00:30.3]} 64. Kc1 {[%clk 0:00:27.4]} 64... Ka3 {[%clk
0:00:28.5]} 65. Rxc2 {[%clk 0:00:21.8]} 65... bxc2 {[%clk 0:00:29.4]} 66. Kxc2
{[%clk 0:00:22.4]} 66... Kb4 {[%clk 0:00:29.4]} 67. Kb2 {[%clk 0:00:21.5]} 67...
Kc4 {[%clk 0:00:29.7]} 68. Kc2 {[%clk 0:00:22.2]} 68... c5 {[%clk 0:00:30]} 69.
Kb2 {[%clk 0:00:22.7]} 0-1